{"text_format":"1","workbook":"xlsx","n_sheets":4,"sheets":["Instructions","Semi-Annual Report","Final Report Outcome Table","Objectives-Tasks & Units"],"not_rendered":{"charts":0,"images":0,"macros":0,"external_links":0,"defined_names":5,"comments":0,"pivot_tables":0},"unopened":[],"bounds":{"document_bytes":16777216,"sheet_cells":100000,"rows_first":2000,"rows_last":500,"rows_between":2000,"halvings":0,"cell_chars":16384,"cell_head_chars":4096},"cells_cut":0,"cells_raw":0,"read":"whole","date_system":"1900"}

{"sheet":"Instructions","index":0,"n_rows":36,"n_cols":2,"rows_kept":36,"cut":false,"hidden":false,"merged":[[28,0,28,12],[26,0,26,12],[11,1,13,12],[15,1,16,12],[0,0,1,12],[24,0,25,12],[9,1,9,11],[2,0,2,12],[7,1,8,12]]}
["Semi-Annual Report Form"]
[]
["ALL Section 319 Project Sponsors are CONTACTUALLY OBLIGATED to submit a Semi-Annual Report to NDEE on each September 20th and March 20th for the duration of the project."]
[]
["1) Completing the Semi-Annual Report  (This will be your template for each semi-annual report you submit)"]
["a.","Fill out top header information (Project Name and Number)."]
["b.","Copy each of the GOALS listed in the approved Project Implementation Plan (PIP)."]
["c.","Copy the Objectives and Tasks for each goal as listed in the approved PIP. Example Objectives-Tasks Units can be found on the Objectives-Tasks & Units tab. You may add Task rows if needed or delete any excess rows not needed."]
[]
["d.","In the \"Target Number #\" column, place the number that corresponds to the number of units."]
["e.","Enter the appropriate unit name in the Unit column.  The Percent (%) Completed column will complete automatically."]
["f.","Fill out the \"Current Report Period\" section at the top of the form. Semi-annual reports are due on September 20th and March 20th through the duration of the project. Reporting period should be either March 21 - September 20, 20xx OR September 21 - March 20, 20xx."]
[]
[]
["g.","In the \"Completed Number\" column place the number of units completed to date for each \"Task\"."]
["h.","Enter notes pertinent to any Objectives or Tasks worked on during the reporting period.  The notes section is the bottom row within each Objective section."]
[]
["i.","Enter the name of the report preparer and date."]
[]
["2) Submitting the Semi-Annual Report"]
["a.","Email a copy of the Semi-Annual Report to ndeq.nonpointsource@nebraska.gov"]
["b.","Retain a copy for your records."]
[]
[]
["Final Report Outcome Table"]
[]
["ALL Section 319 Project Sponsors are CONTACTUALLY OBLIGATED to submit a Final Report to NDEE by the end date of the project contract or within 60 days of project completion.  The Final Report Outcome Table should be included in the appendices of the Final Report."]
[]
["1) Completing the Final Report Outcome Table. This form is nearly the same as the Semi-Annual Report Form.  Use the instructions for the Semi-Annual Report except for the following:"]
["a.","Project Period: Give the duration of the entire project."]
["b.","Date Completed:  For each line of the objectives/tasks, give the actual date completed."]
[]
["2) Submitting the Final Report Outcome Table"]
["a.","Copy the Final Report Outcome Table into the Final Report in the Appendices section."]
["b.","Follow the 319 Final Report Guidance for completing the full Final Report and e-mail a copy to ndeq.nonpointsource@nebraska.gov."]
["c.","Retain a copy for your records."]

{"sheet":"Semi-Annual Report","index":1,"n_rows":86,"n_cols":11,"rows_kept":86,"cut":false,"hidden":false,"merged":[[0,0,0,10],[1,0,1,10],[2,6,2,10],[10,2,10,6],[2,0,2,2],[4,1,5,6],[6,2,6,6],[4,9,5,9],[4,10,5,10],[3,1,3,10],[12,1,12,10],[4,0,12,0],[7,2,7,6],[8,2,8,6],[4,7,5,7],[4,8,5,8],[11,2,11,6],[9,2,9,6],[13,0,21,0],[13,1,14,6],[13,7,14,7],[13,8,14,8],[17,2,17,6],[18,2,18,6],[19,2,19,6],[20,2,20,6],[21,1,21,10],[13,9,14,9],[13,10,14,10],[15,2,15,6],[16,2,16,6],[22,0,30,0],[22,1,23,6],[22,7,23,7],[22,8,23,8],[26,2,26,6],[27,2,27,6],[28,2,28,6],[29,2,29,6],[30,1,30,10],[22,9,23,9],[22,10,23,10],[24,2,24,6],[25,2,25,6],[31,0,39,0],[31,1,32,6],[31,7,32,7],[31,8,32,8],[35,2,35,6],[36,2,36,6],[37,2,37,6],[38,2,38,6],[39,1,39,10],[31,9,32,9],[31,10,32,10],[33,2,33,6],[34,2,34,6],[40,0,48,0],[40,1,41,6],[40,7,41,7],[40,8,41,8],[44,2,44,6],[45,2,45,6],[46,2,46,6],[47,2,47,6],[48,1,48,10],[40,9,41,9],[40,10,41,10],[42,2,42,6],[43,2,43,6],[49,0,57,0],[49,1,50,6],[49,7,50,7],[49,8,50,8],[53,2,53,6],[54,2,54,6],[55,2,55,6],[56,2,56,6],[57,1,57,10],[49,9,50,9],[49,10,50,10],[51,2,51,6],[52,2,52,6],[58,0,66,0],[58,1,59,6],[58,7,59,7],[58,8,59,8],[62,2,62,6],[63,2,63,6],[64,2,64,6],[65,2,65,6],[66,1,66,10],[58,9,59,9],[58,10,59,10],[60,2,60,6],[61,2,61,6],[67,0,75,0],[67,1,68,6],[67,7,68,7],[67,8,68,8],[71,2,71,6],[72,2,72,6],[73,2,73,6],[74,2,74,6],[75,1,75,10],[67,9,68,9],[67,10,68,10],[69,2,69,6],[70,2,70,6],[76,0,84,0],[76,1,77,6],[76,7,77,7],[76,8,77,8],[80,2,80,6],[81,2,81,6],[82,2,82,6],[85,0,87,6],[85,7,87,10],[83,2,83,6],[84,1,84,10],[76,9,77,9],[76,10,77,10],[78,2,78,6],[79,2,79,6]]}
["Semi-Annual Report"]
["PROJECT NAME (NDEE Project # 56-XXXX)"]
["Current Report Period:",null,null,"Insert date","to:","Insert date"]
["GOALS","Objectives/Tasks"]
["Goal 1","Objective: Give Objective for Goal listed in the approved PIP.",null,null,null,null,null,"Planned Number (#)","Units","Completed Number (#)","Percent (%) Completed"]
[]
[null,"Task 1",null,null,null,null,null,null,null,null,{"$f":"J7/H7","v":{"$error":"#DIV/0!"}}]
[null,"Task 2",null,null,null,null,null,null,null,null,{"$error":"#DIV/0!"}]
[null,"Task 3",null,null,null,null,null,null,null,null,{"$error":"#DIV/0!"}]
[null,"Task 4",null,null,null,null,null,null,null,null,{"$error":"#DIV/0!"}]
[null,"Task 5",null,null,null,null,null,null,null,null,{"$error":"#DIV/0!"}]
[null,"Task 6",null,null,null,null,null,null,null,null,{"$error":"#DIV/0!"}]
[null,"*Notes for above Objective/Tasks for this report: (Objective #, Task #, note)."]
["Goal 2","Objective: Give Objective for Goal listed in the approved PIP.",null,null,null,null,null,"Planned Number (#)","Units","Completed Number (#)","Percent (%) Completed"]
[]
[null,"Task 1",null,null,null,null,null,null,null,null,{"$f":"J16/H16","v":{"$error":"#DIV/0!"}}]
[null,"Task 2",null,null,null,null,null,null,null,null,{"$error":"#DIV/0!"}]
[null,"Task 3",null,null,null,null,null,null,null,null,{"$error":"#DIV/0!"}]
[null,"Task 4",null,null,null,null,null,null,null,null,{"$error":"#DIV/0!"}]
[null,"Task 5",null,null,null,null,null,null,null,null,{"$error":"#DIV/0!"}]
[null,"Task 6",null,null,null,null,null,null,null,null,{"$error":"#DIV/0!"}]
[null,"*Notes for above Objective/Tasks for this report: (Objective #, Task #, note)."]
["Goal 3","Objective: Give Objective for Goal listed in the approved PIP.",null,null,null,null,null,"Planned Number (#)","Units","Completed Number (#)","Percent (%) Completed"]
[]
[null,"Task 1",null,null,null,null,null,null,null,null,{"$f":"J25/H25","v":{"$error":"#DIV/0!"}}]
[null,"Task 2",null,null,null,null,null,null,null,null,{"$error":"#DIV/0!"}]
[null,"Task 3",null,null,null,null,null,null,null,null,{"$error":"#DIV/0!"}]
[null,"Task 4",null,null,null,null,null,null,null,null,{"$error":"#DIV/0!"}]
[null,"Task 5",null,null,null,null,null,null,null,null,{"$error":"#DIV/0!"}]
[null,"Task 6",null,null,null,null,null,null,null,null,{"$error":"#DIV/0!"}]
[null,"*Notes for above Objective/Tasks for this report: (Objective #, Task #, note)."]
["Goal 4","Objective: Give Objective for Goal listed in the approved PIP.",null,null,null,null,null,"Planned Number (#)","Units","Completed Number (#)","Percent (%) Completed"]
[]
[null,"Task 1",null,null,null,null,null,null,null,null,{"$f":"J34/H34","v":{"$error":"#DIV/0!"}}]
[null,"Task 2",null,null,null,null,null,null,null,null,{"$error":"#DIV/0!"}]
[null,"Task 3",null,null,null,null,null,null,null,null,{"$error":"#DIV/0!"}]
[null,"Task 4",null,null,null,null,null,null,null,null,{"$error":"#DIV/0!"}]
[null,"Task 5",null,null,null,null,null,null,null,null,{"$error":"#DIV/0!"}]
[null,"Task 6",null,null,null,null,null,null,null,null,{"$error":"#DIV/0!"}]
[null,"*Notes for above Objective/Tasks for this report: (Objective #, Task #, note)."]
["Goal 5","Objective: Give Objective for Goal listed in the approved PIP.",null,null,null,null,null,"Planned Number (#)","Units","Completed Number (#)","Percent (%) Completed"]
[]
[null,"Task 1",null,null,null,null,null,null,null,null,{"$f":"J43/H43","v":{"$error":"#DIV/0!"}}]
[null,"Task 2",null,null,null,null,null,null,null,null,{"$error":"#DIV/0!"}]
[null,"Task 3",null,null,null,null,null,null,null,null,{"$error":"#DIV/0!"}]
[null,"Task 4",null,null,null,null,null,null,null,null,{"$error":"#DIV/0!"}]
[null,"Task 5",null,null,null,null,null,null,null,null,{"$error":"#DIV/0!"}]
[null,"Task 6",null,null,null,null,null,null,null,null,{"$error":"#DIV/0!"}]
[null,"*Notes for above Objective/Tasks for this report: (Objective #, Task #, note)."]
["Goal 6","Objective: Give Objective for Goal listed in the approved PIP.",null,null,null,null,null,"Planned Number (#)","Units","Completed Number (#)","Percent (%) Completed"]
[]
[null,"Task 1",null,null,null,null,null,null,null,null,{"$f":"J52/H52","v":{"$error":"#DIV/0!"}}]
[null,"Task 2",null,null,null,null,null,null,null,null,{"$error":"#DIV/0!"}]
[null,"Task 3",null,null,null,null,null,null,null,null,{"$error":"#DIV/0!"}]
[null,"Task 4",null,null,null,null,null,null,null,null,{"$error":"#DIV/0!"}]
[null,"Task 5",null,null,null,null,null,null,null,null,{"$error":"#DIV/0!"}]
[null,"Task 6",null,null,null,null,null,null,null,null,{"$error":"#DIV/0!"}]
[null,"*Notes for above Objective/Tasks for this report: (Objective #, Task #, note)."]
["Goal 7","Objective: Give Objective for Goal listed in the approved PIP.",null,null,null,null,null,"Planned Number (#)","Units","Completed Number (#)","Percent (%) Completed"]
[]
[null,"Task 1",null,null,null,null,null,null,null,null,{"$f":"J61/H61","v":{"$error":"#DIV/0!"}}]
[null,"Task 2",null,null,null,null,null,null,null,null,{"$error":"#DIV/0!"}]
[null,"Task 3",null,null,null,null,null,null,null,null,{"$error":"#DIV/0!"}]
[null,"Task 4",null,null,null,null,null,null,null,null,{"$error":"#DIV/0!"}]
[null,"Task 5",null,null,null,null,null,null,null,null,{"$error":"#DIV/0!"}]
[null,"Task 6",null,null,null,null,null,null,null,null,{"$error":"#DIV/0!"}]
[null,"*Notes for above Objective/Tasks for this report: (Objective #, Task #, note)."]
["Goal 8","Objective: Give Objective for Goal listed in the approved PIP.",null,null,null,null,null,"Planned Number (#)","Units","Completed Number (#)","Percent (%) Completed"]
[]
[null,"Task 1",null,null,null,null,null,null,null,null,{"$f":"J70/H70","v":{"$error":"#DIV/0!"}}]
[null,"Task 2",null,null,null,null,null,null,null,null,{"$error":"#DIV/0!"}]
[null,"Task 3",null,null,null,null,null,null,null,null,{"$error":"#DIV/0!"}]
[null,"Task 4",null,null,null,null,null,null,null,null,{"$error":"#DIV/0!"}]
[null,"Task 5",null,null,null,null,null,null,null,null,{"$error":"#DIV/0!"}]
[null,"Task 6",null,null,null,null,null,null,null,null,{"$error":"#DIV/0!"}]
[null,"*Notes for above Objective/Tasks for this report: (Objective #, Task #, note)."]
["Goal 9","Objective: Give Objective for Goal listed in the approved PIP.",null,null,null,null,null,"Planned Number (#)","Units","Completed Number (#)","Percent (%) Completed"]
[]
[null,"Task 1",null,null,null,null,null,null,null,null,{"$f":"J79/H79","v":{"$error":"#DIV/0!"}}]
[null,"Task 2",null,null,null,null,null,null,null,null,{"$error":"#DIV/0!"}]
[null,"Task 3",null,null,null,null,null,null,null,null,{"$error":"#DIV/0!"}]
[null,"Task 4",null,null,null,null,null,null,null,null,{"$error":"#DIV/0!"}]
[null,"Task 5",null,null,null,null,null,null,null,null,{"$error":"#DIV/0!"}]
[null,"Task 6",null,null,null,null,null,null,null,null,{"$error":"#DIV/0!"}]
[null,"*Notes for above Objective/Tasks for this report: (Objective #, Task #, note)."]
["Report Preparer:",null,null,null,null,null,null,"Date:"]

{"sheet":"Final Report Outcome Table","index":2,"n_rows":86,"n_cols":12,"rows_kept":86,"cut":false,"hidden":false,"merged":[[4,11,5,11],[6,2,6,6],[7,2,7,6],[8,2,8,6],[9,2,9,6],[10,2,10,6],[0,0,0,11],[1,0,1,11],[2,0,2,2],[2,6,2,11],[3,1,3,11],[4,0,12,0],[4,1,5,6],[4,7,5,7],[4,8,5,8],[4,9,5,9],[11,2,11,6],[12,1,12,11],[13,0,21,0],[13,1,14,6],[13,7,14,7],[13,8,14,8],[13,9,14,9],[13,11,14,11],[15,2,15,6],[16,2,16,6],[22,11,23,11],[17,2,17,6],[18,2,18,6],[19,2,19,6],[20,2,20,6],[21,1,21,11],[22,1,23,6],[22,7,23,7],[22,8,23,8],[22,9,23,9],[29,2,29,6],[30,1,30,11],[31,0,39,0],[31,1,32,6],[31,7,32,7],[31,8,32,8],[31,9,32,9],[31,11,32,11],[33,2,33,6],[34,2,34,6],[22,0,30,0],[24,2,24,6],[25,2,25,6],[26,2,26,6],[27,2,27,6],[28,2,28,6],[35,2,35,6],[36,2,36,6],[37,2,37,6],[38,2,38,6],[39,1,39,11],[40,1,41,6],[40,7,41,7],[40,8,41,8],[40,9,41,9],[47,2,47,6],[48,1,48,11],[49,0,57,0],[49,1,50,6],[49,7,50,7],[49,8,50,8],[49,9,50,9],[49,11,50,11],[51,2,51,6],[52,2,52,6],[40,0,48,0],[40,11,41,11],[42,2,42,6],[43,2,43,6],[44,2,44,6],[45,2,45,6],[46,2,46,6],[53,2,53,6],[54,2,54,6],[55,2,55,6],[56,2,56,6],[57,1,57,11],[58,1,59,6],[58,7,59,7],[58,8,59,8],[58,9,59,9],[76,8,77,8],[76,9,77,9],[65,2,65,6],[66,1,66,11],[76,10,77,10],[67,0,75,0],[67,1,68,6],[67,7,68,7],[67,8,68,8],[67,9,68,9],[67,11,68,11],[69,2,69,6],[70,2,70,6],[58,0,66,0],[67,10,68,10],[58,11,59,11],[60,2,60,6],[61,2,61,6],[62,2,62,6],[63,2,63,6],[64,2,64,6],[58,10,59,10],[83,2,83,6],[84,1,84,11],[85,0,87,6],[85,7,87,11],[4,10,5,10],[13,10,14,10],[22,10,23,10],[31,10,32,10],[40,10,41,10],[49,10,50,10],[76,11,77,11],[78,2,78,6],[79,2,79,6],[80,2,80,6],[81,2,81,6],[82,2,82,6],[71,2,71,6],[72,2,72,6],[73,2,73,6],[74,2,74,6],[75,1,75,11],[76,0,84,0],[76,1,77,6],[76,7,77,7]]}
["Final Report Outcome Table"]
["PROJECT NAME (NDEE Project # 56-XXXX)"]
["Project Period:",null,null,"Insert date","to:","Insert date"]
["GOALS","Objectives/Tasks"]
["Goal 1","Objective: Give Objective for Goal listed in the approved PIP.",null,null,null,null,null,"Planned Number (#)","Units","Completed Number (#)","Percent (%) Completed","Date Completed"]
[]
[null,"Task 1",null,null,null,null,null,null,null,null,{"$f":"J7/H7","v":{"$error":"#DIV/0!"}}]
[null,"Task 2",null,null,null,null,null,null,null,null,{"$f":"J8/H8","v":{"$error":"#DIV/0!"}}]
[null,"Task 3",null,null,null,null,null,null,null,null,{"$error":"#DIV/0!"}]
[null,"Task 4",null,null,null,null,null,null,null,null,{"$error":"#DIV/0!"}]
[null,"Task 5",null,null,null,null,null,null,null,null,{"$error":"#DIV/0!"}]
[null,"Task 6",null,null,null,null,null,null,null,null,{"$error":"#DIV/0!"}]
[null,"*Notes for above Objective/Tasks for this report: (Objective #, Task #, note)."]
["Goal 2","Objective: Give Objective for Goal listed in the approved PIP.",null,null,null,null,null,"Planned Number (#)","Units","Completed Number (#)","Percent (%) Completed","Date Completed"]
[]
[null,"Task 1",null,null,null,null,null,null,null,null,{"$f":"J16/H16","v":{"$error":"#DIV/0!"}}]
[null,"Task 2",null,null,null,null,null,null,null,null,{"$error":"#DIV/0!"}]
[null,"Task 3",null,null,null,null,null,null,null,null,{"$error":"#DIV/0!"}]
[null,"Task 4",null,null,null,null,null,null,null,null,{"$error":"#DIV/0!"}]
[null,"Task 5",null,null,null,null,null,null,null,null,{"$error":"#DIV/0!"}]
[null,"Task 6",null,null,null,null,null,null,null,null,{"$error":"#DIV/0!"}]
[null,"*Notes for above Objective/Tasks for this report: (Objective #, Task #, note)."]
["Goal 3","Objective: Give Objective for Goal listed in the approved PIP.",null,null,null,null,null,"Planned Number (#)","Units","Completed Number (#)","Percent (%) Completed","Date Completed"]
[]
[null,"Task 1",null,null,null,null,null,null,null,null,{"$f":"J25/H25","v":{"$error":"#DIV/0!"}}]
[null,"Task 2",null,null,null,null,null,null,null,null,{"$error":"#DIV/0!"}]
[null,"Task 3",null,null,null,null,null,null,null,null,{"$error":"#DIV/0!"}]
[null,"Task 4",null,null,null,null,null,null,null,null,{"$error":"#DIV/0!"}]
[null,"Task 5",null,null,null,null,null,null,null,null,{"$error":"#DIV/0!"}]
[null,"Task 6",null,null,null,null,null,null,null,null,{"$error":"#DIV/0!"}]
[null,"*Notes for above Objective/Tasks for this report: (Objective #, Task #, note)."]
["Goal 4","Objective: Give Objective for Goal listed in the approved PIP.",null,null,null,null,null,"Planned Number (#)","Units","Completed Number (#)","Percent (%) Completed","Date Completed"]
[]
[null,"Task 1",null,null,null,null,null,null,null,null,{"$f":"J34/H34","v":{"$error":"#DIV/0!"}}]
[null,"Task 2",null,null,null,null,null,null,null,null,{"$error":"#DIV/0!"}]
[null,"Task 3",null,null,null,null,null,null,null,null,{"$error":"#DIV/0!"}]
[null,"Task 4",null,null,null,null,null,null,null,null,{"$error":"#DIV/0!"}]
[null,"Task 5",null,null,null,null,null,null,null,null,{"$error":"#DIV/0!"}]
[null,"Task 6",null,null,null,null,null,null,null,null,{"$error":"#DIV/0!"}]
[null,"*Notes for above Objective/Tasks for this report: (Objective #, Task #, note)."]
["Goal 5","Objective: Give Objective for Goal listed in the approved PIP.",null,null,null,null,null,"Planned Number (#)","Units","Completed Number (#)","Percent (%) Completed","Date Completed"]
[]
[null,"Task 1",null,null,null,null,null,null,null,null,{"$f":"J43/H43","v":{"$error":"#DIV/0!"}}]
[null,"Task 2",null,null,null,null,null,null,null,null,{"$error":"#DIV/0!"}]
[null,"Task 3",null,null,null,null,null,null,null,null,{"$error":"#DIV/0!"}]
[null,"Task 4",null,null,null,null,null,null,null,null,{"$error":"#DIV/0!"}]
[null,"Task 5",null,null,null,null,null,null,null,null,{"$error":"#DIV/0!"}]
[null,"Task 6",null,null,null,null,null,null,null,null,{"$error":"#DIV/0!"}]
[null,"*Notes for above Objective/Tasks for this report: (Objective #, Task #, note)."]
["Goal 6","Objective: Give Objective for Goal listed in the approved PIP.",null,null,null,null,null,"Planned Number (#)","Units","Completed Number (#)","Percent (%) Completed","Date Completed"]
[]
[null,"Task 1",null,null,null,null,null,null,null,null,{"$f":"J52/H52","v":{"$error":"#DIV/0!"}}]
[null,"Task 2",null,null,null,null,null,null,null,null,{"$error":"#DIV/0!"}]
[null,"Task 3",null,null,null,null,null,null,null,null,{"$error":"#DIV/0!"}]
[null,"Task 4",null,null,null,null,null,null,null,null,{"$error":"#DIV/0!"}]
[null,"Task 5",null,null,null,null,null,null,null,null,{"$error":"#DIV/0!"}]
[null,"Task 6",null,null,null,null,null,null,null,null,{"$error":"#DIV/0!"}]
[null,"*Notes for above Objective/Tasks for this report: (Objective #, Task #, note)."]
["Goal 7","Objective: Give Objective for Goal listed in the approved PIP.",null,null,null,null,null,"Planned Number (#)","Units","Completed Number (#)","Percent (%) Completed","Date Completed"]
[]
[null,"Task 1",null,null,null,null,null,null,null,null,{"$f":"J61/H61","v":{"$error":"#DIV/0!"}}]
[null,"Task 2",null,null,null,null,null,null,null,null,{"$error":"#DIV/0!"}]
[null,"Task 3",null,null,null,null,null,null,null,null,{"$error":"#DIV/0!"}]
[null,"Task 4",null,null,null,null,null,null,null,null,{"$error":"#DIV/0!"}]
[null,"Task 5",null,null,null,null,null,null,null,null,{"$error":"#DIV/0!"}]
[null,"Task 6",null,null,null,null,null,null,null,null,{"$error":"#DIV/0!"}]
[null,"*Notes for above Objective/Tasks for this report: (Objective #, Task #, note)."]
["Goal 8","Objective: Give Objective for Goal listed in the approved PIP.",null,null,null,null,null,"Planned Number (#)","Units","Completed Number (#)","Percent (%) Completed","Date Completed"]
[]
[null,"Task 1",null,null,null,null,null,null,null,null,{"$f":"J70/H70","v":{"$error":"#DIV/0!"}}]
[null,"Task 2",null,null,null,null,null,null,null,null,{"$error":"#DIV/0!"}]
[null,"Task 3",null,null,null,null,null,null,null,null,{"$error":"#DIV/0!"}]
[null,"Task 4",null,null,null,null,null,null,null,null,{"$error":"#DIV/0!"}]
[null,"Task 5",null,null,null,null,null,null,null,null,{"$error":"#DIV/0!"}]
[null,"Task 6",null,null,null,null,null,null,null,null,{"$error":"#DIV/0!"}]
[null,"*Notes for above Objective/Tasks for this report: (Objective #, Task #, note)."]
["Goal 9","Objective: Give Objective for Goal listed in the approved PIP.",null,null,null,null,null,"Planned Number (#)","Units","Completed Number (#)","Percent (%) Completed","Date Completed"]
[]
[null,"Task 1",null,null,null,null,null,null,null,null,{"$f":"J79/H79","v":{"$error":"#DIV/0!"}}]
[null,"Task 2",null,null,null,null,null,null,null,null,{"$error":"#DIV/0!"}]
[null,"Task 3",null,null,null,null,null,null,null,null,{"$error":"#DIV/0!"}]
[null,"Task 4",null,null,null,null,null,null,null,null,{"$error":"#DIV/0!"}]
[null,"Task 5",null,null,null,null,null,null,null,null,{"$error":"#DIV/0!"}]
[null,"Task 6",null,null,null,null,null,null,null,null,{"$error":"#DIV/0!"}]
[null,"*Notes for above Objective/Tasks for this report: (Objective #, Task #, note)."]
["Report Preparer:",null,null,null,null,null,null,"Date:"]

{"sheet":"Objectives-Tasks & Units","index":3,"n_rows":183,"n_cols":3,"rows_kept":183,"cut":false,"hidden":false,"merged":[[180,0,182,0],[40,0,49,0],[50,0,66,0],[23,0,29,0],[30,0,39,0],[79,0,97,0],[98,0,124,0],[67,0,70,0],[0,0,0,2],[71,0,74,0],[75,0,78,0],[175,0,179,0],[125,0,148,0],[149,0,166,0],[167,0,174,0],[2,0,12,0],[13,0,22,0]]}
["Objectives/Tasks & Units Reference Sheet"]
["GOALS","Objectives/Tasks","Objectives/Tasks Units"]
["Streambank & Riparian Restoration","Publish RFPs","RFPs"]
[null,"Execute  Planning or Design Contracts","Contracts"]
[null,"Develop Project Plans or Design Documents","Plans"]
[null,"Execute Construction Contract(s)","Contracts"]
[null,"Restore Streambank Using Bio-Engineering","Linear Feet"]
[null,"Restore Streambank By Recontouring or Regrading","Linear Feet"]
[null,"Plant Grasses in Riparian Areas","Acres"]
[null,"Plant Prairie Grasses in Riparian Areas","Acres"]
[null,"Remove/treat Invasive Species","Acres"]
[null,"Plant Trees or Shrubs in Riparian Areas","Trees"]
[null,"Plant Trees or Shrubs in Riparian Areas","Acres"]
["Stream Restoration","Publish RFPs","RFPs"]
[null,"Execute Planning or Design Contracts","Contracts"]
[null,"Develop Project Plans or Design Documents","Plans"]
[null,"Execute Construction Contract(s)","Contracts"]
[null,"Restore Flood Plain","Linear Feet"]
[null,"Restore Stream Channel","Linear Feet"]
[null,"Install In-Stream Habitat Structures","Structures"]
[null,"Install Grade Structures","Structures"]
[null,"Construct 2-Stage Channel","Linear Feet"]
[null,"Restore Natural Flow","Linear Feet"]
["Wetland Restoration","Publish RFPs","RFPs"]
[null,"Execute Planning or Design Contracts","Contracts"]
[null,"Develop Project Plans or Design Documents","Plans"]
[null,"Execute Construction Contract(s)","Contracts"]
[null,"Reconnect wetland to stream","Acres"]
[null,"Reconstruct & Restore Wetlands","Acres"]
[null,"Plant Wetland Species","Acres"]
["Dam Modification or Removal","Publish RFPs","RFPs"]
[null,"Execute Planning or Design Contracts","Contracts"]
[null,"Develop Project Plans or Design Documents","Plans"]
[null,"Execute Construction Contract(s)","Contracts"]
[null,"Remove Dams","Dams"]
[null,"Modify Dams","Dams"]
[null,"Remove Associated Dam Support Structures","Structures"]
[null,"Install Fish Passage and/or Habitat Structures","Structures"]
[null,"Restore Natural Flow","Linear Feet"]
[null,"Dispose of Debris","Cubic Yards"]
["Levee or Dike Modification or Removal","Publish RFPs","RFPs"]
[null,"Execute Planning or Design Contracts","Contracts"]
[null,"Develop Project Plans or Design Documents","Plans"]
[null,"Execute Construction Contract(s)","Contracts"]
[null,"Remove Levees","Levees"]
[null,"Breach or Modify Levees","Levees"]
[null,"Remove Dikes","Dikes"]
[null,"Modify Dikes","Dikes"]
[null,"Restore Natural Flood Plain Function","Linear Feet"]
[null,"Dispose of Debris","Cubic Yards"]
["Acid Mine Drainage & Abandoned Mine Land Reclamation","Publish RFPs","RFPs"]
[null,"Execute  Planning or Design Contracts","Contracts"]
[null,"Develop Project Plans or Design Documents","Plans"]
[null,"Execute Contract(s)","Contracts"]
[null,"Construct Lime Dosers","Dosers"]
[null,"Install Slag Leach Beds","Beds"]
[null,"Install Limestone Leach Beds","Beds"]
[null,"Install Limestone Channels","Linear Feet"]
[null,"Repair Subsidence Sites","Acres"]
[null,"Reclaim Abandoned Mine Land","Acres"]
[null,"Reclaim Pit Impoundments","Acres"]
[null,"Install Successive Alkalinity Producing Systems","SAPS"]
[null,"Install Settling Ponds","Ponds"]
[null,"Eliminate Stream Captures","Stream Captures"]
[null,"Restore Positive Drainage","Acres"]
[null,"Cover Toxic Mine Spoils","Acres"]
[null,"Construct Acid Mind Drainage Wetland","Acres"]
["Non-Wetland Conservation Easements","Draft Standard Easement Legal Language for Landowners","Standard Language"]
[null,"Complete Appraisal Reports","Reports"]
[null,"Execute Landowner Contracts","Contracts"]
[null,"Acquire Conservation Easements","Acres"]
["Wetland Conservation Easements","Draft Standard Easement Legal Language for Landowners","Standard Language"]
[null,"Complete Appraisal Reports","Reports"]
[null,"Execute Landowner Contracts","Contracts"]
[null,"Acquire Conservation Easements","Acres"]
["Home Sewage Treatment Systems","Develop HSTS Plan","Plans"]
[null,"Inspect HSTS","Inspections"]
[null,"Repair or Replace Traditional HSTS","HSTS"]
[null,"Repair or Replace Alternative HSTS","HSTS"]
["Planning, Technical Review & Analysis","Develop Watershed Action Plans","Plans"]
[null,"Convene Project Advisory Teams","Teams"]
[null,"Develop 208 Plans","Plans"]
[null,"Develop Source Water Protection Plans","Plans"]
[null,"Develop Plans (Other)","Plans"]
[null,"Publish RFP","RFPs"]
[null,"Execute Planning Contract(s)","Contracts"]
[null,"Solicit Public Input via Meetings","Public Meetings"]
[null,"Solicit Public Input via Written Comments","Comments"]
[null,"Solicit Expert Opinion","Consultations"]
[null,"Solicit Technician Opinion","Consultations"]
[null,"Collect Raw Data","Data Sets"]
[null,"Conduct Review of Published Resources","Resources"]
[null,"Develop Database","Databases"]
[null,"Analyze Data","Analysis"]
[null,"Complete Wetland Delineation ","Reports"]
[null,"Develop GIS Maps","Maps"]
[null,"Review or Approve Plans, Workplans, or Reports","Plans"]
[null,"Develop Reports","Reports"]
["Agricultural Best Management Practices","Plant Cover/Manure Crops","Acres"]
[null,"Install Nitrogen Reduction Practices","Acres"]
[null,"Install Controll Drainage System","Acres"]
[null,"Develop Nutrient Management Plans","Acres"]
[null,"Develop Whole Farm Management Plans","Acres"]
[null,"Implement Conservation Tillage Practices","Acres"]
[null,"Implement Prescribed & Conservation  Grazing Practices","Acres"]
[null,"Install Alternative Water Supplies","Supplies"]
[null,"Install Erosion & Sediment Control Structures","Structures"]
[null,"Construct 2-Stage Channel","Linear Feet"]
[null,"Install Grassed Waterways","Acres"]
[null,"Install Vegetated Buffer Strips","Linear Feet"]
[null,"Install Livestock Crossings","Crossings"]
[null,"Install Heavy Use Feeding Pads","Pads"]
[null,"Install Livestock Exclusion Fencing","Linear Feet"]
[null,"Install Chemical Mixing Pads","Pads"]
[null,"Install Sinkhole Stabilization Structures","Structures"]
[null,"Construct Animal Waste Storage Structures","Structures"]
[null,"Implement Manure Management Practices","Acres"]
[null,"Conduct Soil Testing","Tests"]
[null,"Implement Grass/Legume Rotations","Acres"]
[null,"Install Grass Manure Spreading Strips","Acres"]
[null,"Implement Manure Transfer Practices","Acres"]
[null,"Implement Drainage Water Management ","Acres"]
[null,"Install Roof Water Management Practices","Practices"]
[null,"Execute Landowner Cost-Share Contracts","Cost-share Agreements"]
[null,"Execute Installer Contract (if paying installer directly)","Contracts"]
["Communication: Information and Education","Develop Brochures/Fact Sheets","Brochures/Fact Sheets"]
[null,"Conduct Watershed Festivals","Festivals"]
[null,"Conduct Public Meeting","Public Meetings"]
[null,"Develop Press Releases","Press Releases"]
[null,"Create/Maintain Websites","Website"]
[null,"Install Signs","Signs"]
[null,"Develop Displays","Displays"]
[null,"Conduct Tours","Tours"]
[null,"Conduct Tours via Canoe","Canoe Trips"]
[null,"Develop DVD","DVDs"]
[null,"Distribute DVDs","DVDs"]
[null,"Develop CD","CDs"]
[null,"Distribute CDs ","CDs"]
[null,"Conduct Stream Clean-Ups","Clean-Ups"]
[null,"Conduct Field Days","Days"]
[null,"Stencil Storm Drains","Drains"]
[null,"Conduct Workshops","Workshops"]
[null,"Conduct Training","Training Sessions"]
[null,"Develop Manual(s)","Manuals"]
[null,"Provide Technical Assistance to Group(s)","Groups"]
[null,"Provide Technical Assistance via Telephone","Calls"]
[null,"Deliver On-Site Technical Assistance","Site Visits"]
[null,"Develop Model Ordinances","Ordinances"]
[null,"Develop Newsletters","Newsletters"]
["Watershed Support (Core Programs Only)","Execute Sub Grant Agreements","# Contracts"]
[null,"Administer Sub Grants to Watershed Groups","# Grants "]
[null,"Conduct Functional Reviews and/or Site Visits","# Functional Reviews"]
[null,"Conduct Workshops","# Workshops"]
[null,"Conduct Training","# Training Sessions"]
[null,"Create/Maintain Web Sites","# Websites"]
[null,"Develop web-based tutorials","# tutorials"]
[null,"Prepare Annual NPS Report","# Reports"]
[null,"Provide Technical Assistance","# Groups"]
[null,"Provide Design Assistance","# Groups"]
[null,"Provide BMP Assistance","# Groups"]
[null,"Calculate Load Reduction Estimates","# Groups"]
[null,"Provide GIS Mapping Assistance","# Groups"]
[null,"Develop Databases","# Databases"]
[null,"Prepare AMDAT Plans","# Plans"]
[null,"Provide AMD Design Assistance","# AMD Project Designs"]
[null,"Inspect BMP/AMD/ Other Project Sites","# Inspections"]
[null,"Develop Project Evaluation Protocol","# Evaluation Protocols"]
["Pre- and Post-Implementation Monitoring","Prepare Quality Assurance Plan","QAPP"]
[null,"Conduct Chemical Sampling","Sites"]
[null,"Conduct Macroinvertebrate (ICI) Sampling","Sites"]
[null,"Conduct Fish (IBI) Sampling","Sites"]
[null,"Conduct Habitat (QHEI or HHEI) Sampling","Sites"]
[null,"Conduct Nitrate Sampling (SOIL)","Samples"]
[null,"Conduct Nitrate Sampling (WATER)","Sites"]
[null,"Prepare and Submit Final Monitoring Report and Data","Report"]
["Estimated Loading Reductions","Reduce Phosphorus Loadings","Pounds/Year"]
[null,"Reduce Sediment Loadings","Tons/Year"]
[null,"Reduce Untreated Home Sewage","Gallons Per Day"]
[null,"Treat Acid Water","Pounds/Year"]
[null,"Reduce Nitrogen Loadings","Pounds/Year"]
["Project Reporting","Submit Semi-Annual Progress Reports","Reports"]
[null,"Submit Annual MBE/WBE Reports","Reports"]
[null,"Submit Final Report","Reports"]